[Event "Marmaris Karya-18 GM-May 2022"]
[Site "Icmeler-Marmaris"]
[Date "2022.05.09"]
[Round "3.1"]
[White "Caglar, Sila"]
[Black "Odeev, Handszar"]
[Result "1/2-1/2"]
[ECO "C41"]
[WhiteElo "2133"]
[BlackElo "2305"]
[Annotator "TA"]
[PlyCount "86"]
[EventDate "2022.05.11"]
[EventCountry "TUR"]
[SourceTitle "playchess.com"]
[Source "ChessBase"]
[SourceQuality "1"]
[TimeControl "5400+30"]

{[%evp 13,86,29,52,17,26,25,18,0,8,0,7,18,11,-11,-14,-10,-13,-20,-17,-18,-19,-16,-18,-27,-34,-22,-21,-33,-35,-22,-14,-93,-87,-83,-72,-68,-82,-70,-32,-47,-46,-68,-68,-84,-77,-85,-76,-72,-81,-76,-72,-72,0,-86,-72,-75,-66,-71,-51,-67,-48,-45,-35,-420,-94,-106,-87,-95,0,0,0,0,0,-2,0]} 1. e4 {[%emt 0:03:00]} e5 {[%emt 0:05:00]} 2. Nf3 {[%emt 0:00:30]} d6 {[%emt 0:01:30]} 3. d4 {[%emt 0:00:30]} exd4 {[%emt 0:00:30]} 4. Nxd4 {[%emt 0:00:30]} Nf6 {[%emt 0:00:30]} 5. Nc3 {[%emt 0:00:30]} Be7 {[%emt 0:00:30]} 6. Be2 {[%emt 0:00:30]} O-O {[%emt 0:03:30]} 7. O-O {[%emt 0:00:30]} Re8 {[%emt 0:00:30]} 8. Bc4 {[%emt 0:00:30] C41: Philidor Defence.} Bf8 {[%emt 0:00:30]} 9. Re1 {[%emt 0:00:30]} c6 {[%emt 0:14:30]} 10. a4 {[%emt 0:06:30] [#] Against b5} d5 $146 {[%emt 0:00:30]} ({Predecessor:} 10... Nbd7 11. Bg5 Ne5 12. Bb3 Ng6 13. Qf3 Be7 14. Nf5 Bxf5 15. Qxf5 Qc8 16. Qxc8 Raxc8 {1-0 (57) Nguyen,N (2634)-Demuth,A (2545) Berlin 2015}) 11. exd5 {[%emt 0:00:30]} Rxe1+ {[%emt 0:00:30]} 12. Qxe1 {[%emt 0:00:30] next Bg5 is good for White.} cxd5 {[%emt 0:00:30]} 13. Bb5 {[%emt 0:00:30]} a6 {[%emt 0:00:30]} 14. Bd3 {[%emt 0:00:30]} Nc6 {[%emt 0:01:30]} 15. Nxc6 {[%emt 0:04:30]} bxc6 {[%emt 0:01:30]} 16. Bg5 {[%emt 0:01:30]} h6 {[%emt 0:10:30]} 17. Bh4 {[%emt 0:01:30]} Be6 {[%emt 0:02:30]} 18. Qe2 {[%emt 0:01:30]} a5 {[%emt 0:01:30]} 19. h3 {[%emt 0:00:30]} Rb8 {[%emt 0:03:30]} 20. Rb1 {[%emt 0:01:30]} Bd6 {[%emt 0:06:30][%cal Bf8d6,Bd6e5,Be5f6][%mdl 32]} 21. Qf3 {[%emt 0:03:30]} Be5 {[%emt 0:06:30]} 22. Re1 {[%emt 0:05:30]} (22. Ne2 $11 {remains equal.}) 22... Qd6 $36 {[%emt 0:00:30][%mdl 2048] White is under strong pressure.} 23. Nd1 {[%emt 0:10:30]} Rb4 {[%emt 0:06:30]} 24. Bxf6 {[%emt 0:02:30]} Bxf6 {[%emt 0:00:30]} (24... gxf6 25. b3 $11) 25. b3 {[%emt 0:00:30]} Rf4 {[%emt 0:13:16]} 26. Qe2 {[%emt 0:00:00]} Bd4 {[%emt 0:00:15]} 27. Qd2 {[%emt 0:05:00]} Bb6 {[%emt 0:01:47]} 28. Bf1 {[%emt 0:00:30]} h5 {[%emt 0:02:03][%cal Bh6h5,Bh5h4][%mdl 32]} 29. Ne3 {[%emt 0:03:30]} h4 {[%emt 0:02:14]} 30. Bd3 {[%emt 0:02:30]} g6 {[%emt 0:01:43]} 31. Re2 {[%emt 0:00:30]} Bc7 {[%emt 0:01:54][%cal Of4a4]} (31... Bd7 {is more complex.} 32. Qc3 Rb4 33. Qb2 Kh7) 32. Nf1 {[%emt 0:00:30]} Bb6 {[%emt 0:03:42]} 33. Ne3 $1 {[%emt 0:04:30]} Kg7 {[%emt 0:06:43]} 34. Nf1 {[%emt 0:00:30]} g5 {[%emt 0:00:15]} 35. Qc3+ {[%emt 0:03:30]} Kg8 {[%emt 0:00:42]} 36. Ba6 {[%emt 0:01:30]} g4 {[%emt 0:01:23]} 37. hxg4 {[%emt 0:01:30]} Rxg4 {[%emt 0:00:03] White must now prevent ...Qf4.} 38. Bb7 $2 {[%emt 0:02:30][%mdl 8192] [#]} ({Better is} 38. Bc8 $1 $15) 38... Bd7 $2 {[%emt 0:00:42]} (38... Qf4 $1 $19 {[%cal Og4g2] and Black stays clearly on top. Threatens to win with ...Rxg2+!} 39. Ba6 (39. Bxc6 $2 Rxg2+ 40. Kxg2 Qg4+ 41. Kh2 Qxe2 $19) 39... Rxg2+ 40. Kxg2 Bd4) 39. Bc8 {[%emt 0:08:30]} Bd4 {[%emt 0:01:31]} 40. Qf3 {[%emt 0:02:30]} (40. Qxa5 {[#]} Qg6 $1 41. Ng3 Rxg3 $19) 40... Bxc8 {[%emt 0:01:05] A strong pair of Bishops.} (40... Rf4 $17 41. Qh5 Rxf2 42. Rxf2 (42. Qg5+ Qg6 $17) 42... Bxf2+ 43. Kxf2 Qf6+ 44. Qf3 Qxf3+ 45. Kxf3 Bxc8) 41. Re8+ $11 {[%emt 0:00:00] The position is equal.} Kg7 {[%emt 0:00:08]} 42. Rxc8 {[%emt 0:00:00] Dancing on a razor blade.} Rg5 {[%emt 0:01:00]} (42... Rf4 $5 43. Qh5 Bxf2+ 44. Kh1 Qf6 $11) 43. Ne3 {[%emt 0:01:30] And now Nf5+ would win.} Qg6 {[%emt 0:00:29] Against Nf5+.  Weighted Error Value: White=0.19 (very precise) /Black=0.27 (precise)} 1/2-1/2

[Event "Marmaris Karya-18 GM-May 2022"]
[Site "Icmeler-Marmaris"]
[Date "2022.05.09"]
[Round "3.2"]
[White "Gunduz, Umut Erdem"]
[Black "Darban, Morteza"]
[Result "0-1"]
[ECO "B04"]
[WhiteElo "2316"]
[BlackElo "2279"]
[Annotator "TA"]
[PlyCount "40"]
[EventDate "2022.05.11"]
[EventCountry "TUR"]
[SourceTitle "playchess.com"]
[Source "ChessBase"]
[SourceQuality "1"]
[TimeControl "5400+30"]

{[%evp 11,40,37,55,44,58,43,38,30,30,-7,4,-5,-16,-29,-37,-52,-33,-199,0,-28,-16,-27,-14,-51,-48,-73,-66,-485,-63,-198,1085]} 1. e4 {[%emt 0:07:00]} Nf6 {[%emt 0:06:00]} 2. e5 {[%emt 0:00:30]} Nd5 {[%emt 0:00:30]} 3. d4 {[%emt 0:00:30]} d6 {[%emt 0:00:30]} 4. Nf3 {[%emt 0:01:30]} dxe5 {[%emt 0:00:30]} 5. Nxe5 {[%emt 0:02:30]} c6 {[%emt 0:00:30]} 6. Be2 {[%emt 0:01:30]} Nd7 {[%emt 0:00:30]} 7. Nf3 {[%emt 0:00:30] B04: Alekhine's Defence: 4 Nf3.} e6 {[%emt 0:00:30] Recently 7...N7f6 got a lot of attention.} 8. O-O {[%emt 0:00:30]} b5 {[%emt 0:00:30][%cal Bb7b5,Bb5b4][%mdl 32]} 9. a4 {[%emt 0:08:30] White is slightly better.} b4 {[%emt 0:02:30] [#]} 10. Nbd2 $146 {[%emt 0:00:30][%cal Bb1d2,Bd2c4,Bc4e5][%mdl 32]} ({Predecessor:} 10. c4 N5f6 11. Bf4 {½-½ (11) Szieberth,A (2389)-Varga,Z (2503) Budapest 2001}) 10... Be7 {[%emt 0:00:30]} 11. Nc4 {[%emt 0:05:30]} O-O {[%emt 0:01:30]} 12. Nce5 {[%emt 0:01:30]} Bb7 {[%emt 0:01:30]} 13. Bd3 {[%emt 0:02:30]} c5 {[%emt 0:03:30]} 14. Ng5 $2 {[%emt 0:11:30] [#]} N7f6 $2 {[%emt 0:00:30]} (14... Nxe5 15. Bxh7+ Kh8 16. Qh5 $11) (14... Bxg5 $19 15. Nxd7 Bxc1 16. Bxh7+ Kxh7 17. Nxf8+ Qxf8 18. Rxc1 Kg8) 15. dxc5 {[%emt 0:00:30]} Qc7 {[%emt 0:00:30] Inhibits c6.} 16. Qe2 {[%emt 0:04:30]} Bxc5 {[%emt 0:05:30]} 17. Ne4 {[%emt 0:02:30]} Nxe4 {[%emt 0:03:30]} 18. Bxe4 {[%emt 0:00:00][%cal Of1e1]} Bd6 {[%emt 0:02:30]} 19. g3 $2 {[%emt 0:13:00][%mdl 8192] [#]} Rfc8 $2 {[%emt 0:07:30]} (19... Bxe5 $19 20. a5 h6) 20. Bf4 {[%emt 0:00:30]} Qxc2 $4 {[%emt 0:15:30][%mdl 40960] Weighted Error Value: White=0.92/Black=0.56. Loss on time!?} 0-1

[Event "Marmaris Karya-18 GM-May 2022"]
[Site "Icmeler-Marmaris"]
[Date "2022.05.09"]
[Round "3.3"]
[White "Angun, Batu"]
[Black "Blesic, Vaso"]
[Result "1/2-1/2"]
[ECO "D85"]
[WhiteElo "2326"]
[BlackElo "2264"]
[Annotator "TA"]
[PlyCount "119"]
[EventDate "2022.05.11"]
[EventCountry "TUR"]
[SourceTitle "playchess.com"]
[Source "ChessBase"]
[SourceQuality "1"]
[TimeControl "5400+30"]

{[%evp 17,119,32,24,23,12,23,12,26,37,6,40,30,48,46,63,34,38,50,46,52,39,35,56,40,100,106,116,110,111,112,235,225,243,0,111,20,9,20,10,0,2,24,20,31,17,0,13,0,0,-182,-30,-20,-34,-43,-26,-66,0,0,0,0,0,0,0,-191,-187,-185,212,239,254,283,329,85,86,81,72,0,0,0,0,0,0,0,0,0,0,0,0,0,0,0,0,0,0,-40,-40,0,0,0,0,-104,0,0,0,0]} 1. d4 {[%emt 0:15:00]} Nf6 {[%emt 0:14:00]} 2. c4 {[%emt 0:00:30]} g6 {[%emt 0:00:30]} 3. Nc3 {[%emt 0:00:30]} d5 {[%emt 0:00:30]} 4. cxd5 {[%emt 0:00:30]} Nxd5 {[%emt 0:00:30]} 5. e4 {[%emt 0:00:30]} Nxc3 {[%emt 0:00:30]} 6. bxc3 {[%emt 0:00:30]} Bg7 {[%emt 0:00:30]} 7. Nf3 {[%emt 0:00:30]} O-O {[%emt 0:00:30]} 8. Be2 {[%emt 0:00:30]} c5 {[%emt 0:00:30]} 9. O-O {[%emt 0:00:30]} b6 {[%emt 0:00:30] The modern move.} 10. Qc2 {[%emt 0:00:30] D85: Exchange Grünfeld: Unusual White 7th moves and lines with 7 Nf3.} cxd4 {[%emt 0:00:30]} 11. cxd4 {[%emt 0:00:30]} Bb7 {[%emt 0:00:30]} 12. Bb2 {[%emt 0:00:30][%cal Bc1b2,Bb2c3,Bc3d2][%mdl 32]} Qc8 {[%emt 0:00:30] [#]} 13. Bc3 $146 {[%emt 0:00:30]} ({Predecessor:} 13. Qd3 Qg4 14. Nd2 Qd7 15. Nb3 Na6 16. Rfd1 Rfd8 17. Qe3 Nb4 18. Qd2 Qa4 19. d5 Bxb2 20. Qxb2 {½-½ (60) Van Foreest,L (2293)-Van Foreest,J (2519) Lueneburg 2015}) 13... Qg4 {[%emt 0:08:30]} 14. Bd3 {[%emt 0:01:30]} Nd7 {[%emt 0:05:30]} 15. Rfe1 {[%emt 0:05:30]} Rfc8 {[%emt 0:05:30][%cal Od7c5]} 16. Qb2 {[%emt 0:01:30]} Qf4 {[%emt 0:20:30]} 17. Bd2 {[%emt 0:10:30]} Qc7 {[%emt 0:02:30]} 18. Qb3 {[%emt 0:01:30]} e6 {[%emt 0:03:30]} 19. Rac1 {[%emt 0:01:30]} Qd6 {[%emt 0:01:30]} 20. e5 {[%emt 0:06:30]} Qf8 {[%emt 0:00:00]} (20... Qe7 $14) 21. Bb5 $1 $16 {[%emt 0:03:30] White is much more active. The black rooks are badly placed.} Bd5 {[%emt 0:04:00]} 22. Qa4 {[%emt 0:03:30]} Rxc1 {[%emt 0:02:30]} 23. Rxc1 {[%emt 0:00:30]} (23. Bxc1 $6 a6 24. Bxd7 b5 $11) 23... Nb8 {[%emt 0:00:30]} (23... Bh6 $16) 24. Be8 $1 $18 {[%emt 0:07:30]} Na6 {[%emt 0:03:30] Prevents Bb4.} 25. Bb5 {[%emt 0:00:30]} ({Not} 25. Qxa6 Qxe8 26. Rc7 Qb8 $15) (25. Bc6 $18 {is the precise move to win.} Bxc6 26. Qxc6 (26. Rxc6 Qe8 $11)) 25... Nb8 $1 $16 {[%emt 0:00:30]} 26. Rc7 {[%emt 0:11:30]} ({Better is} 26. Bc4 $16 Bxf3 27. gxf3) 26... a6 $11 {[%emt 0:00:30]} 27. Be8 {[%emt 0:07:30]} b5 {[%emt 0:00:30][%cal Bb6b5,Bb5b4][%mdl 32]} 28. Qc2 {[%emt 0:00:33]} Qxe8 {[%emt 0:00:30]} 29. Rc8 {[%emt 0:00:27]} Nc6 {[%emt 0:00:00]} 30. Rxe8+ {[%emt 0:00:30]} Rxe8 {[%emt 0:00:00]} 31. Qc5 {[%emt 0:00:00]} b4 {[%emt 0:01:30]} 32. Qb6 {[%emt 0:01:00]} ({Don't blunder} 32. Bxb4 $2 Bf8 33. Qc1 Bxb4 $19) 32... a5 {[%emt 0:00:30]} 33. Qc7 $2 {[%emt 0:00:30]} (33. h4 $11 {and White is okay.}) 33... h6 $2 {[%emt 0:02:30]} ({Don't do} 33... Bxf3 34. gxf3 Nxd4 35. Qd7 Nxf3+ 36. Kg2 Nh4+ 37. Kh3 $18) (33... a4 $1 $19 {Strongly threatening ...a3.} 34. Qd7 Rf8) 34. Ne1 $1 {[%emt 0:00:55]} a4 {[%emt 0:01:30] Hoping for ...Rb8.} 35. Nd3 {[%emt 0:01:12] aiming for Nf4.} b3 {[%emt 0:02:30]} 36. axb3 {[%emt 0:00:36]} axb3 {[%emt 0:00:30]} (36... a3 $15 37. Bc3 a2) 37. Bc3 $36 {[%emt 0:00:28][%mdl 2048] White has some pressure.} g5 {[%emt 0:01:08] Inhibits Nf4.} 38. h3 {[%emt 0:00:26]} Bf8 {[%emt 0:01:37]} 39. Nb2 {[%emt 0:04:07]} Ra8 {[%emt 0:00:36]} 40. Kh2 $2 {[%emt 0:02:24]} (40. Nd1 $1 $11) 40... Ra1 {[%emt 0:01:13]} 41. Qc8 {[%emt 0:00:01]} Rc1 $4 {[%emt 0:00:31][%mdl 8192] [#]} (41... Kg7 $19 {and all is fine. Threatens to win with ...Rc1.} 42. h4 Be7) 42. Bb4 $1 $18 {[%emt 0:00:10][%mdl 512] The board is on fire.} Nxb4 {[%emt 0:01:21]} (42... Rh1+ 43. Kxh1) 43. Qxc1 {[%emt 0:00:06]} Nc2 {[%emt 0:00:03]} 44. Qd2 {[%emt 0:01:13]} (44. Qd1 $18 {has better winning chances.}) 44... Bb4 $16 {[%emt 0:00:19] [#]} 45. Qe2 {[%emt 0:03:30]} Nxd4 {[%emt 0:00:45]} 46. Qg4 {[%emt 0:00:05]} (46. Qd3 $16 Nc6 47. Qe3) 46... Nc6 $11 {[%emt 0:02:00]} 47. Nd1 {[%emt 0:01:43] Inhibits Bc3.} Bd2 {[%emt 0:00:40]} 48. h4 {[%emt 0:02:26]} Bf4+ {[%emt 0:01:09]} 49. Kg1 {[%emt 0:00:04]} Nxe5 {[%emt 0:00:20]} 50. Qe2 {[%emt 0:00:44]} Nc4 {[%emt 0:01:12]} 51. hxg5 {[%emt 0:00:25]} hxg5 {[%emt 0:00:19]} 52. Nb2 {[%emt 0:01:11]} Nxb2 {[%emt 0:03:03]} 53. Qxb2 {[%emt 0:00:04]} g4 {[%emt 0:02:45]} 54. Qd4 {[%emt 0:01:07]} Bh6 {[%emt 0:00:06] A strong pair of Bishops.} 55. Qxg4+ {[%emt 0:00:21]} Bg7 {[%emt 0:00:04] White must now prevent ...b2.} 56. Qg5 {[%emt 0:00:08]} (56. Qh4 $15) 56... b2 $17 {[%emt 0:00:10]} 57. Qd8+ {[%emt 0:00:04]} Kh7 {[%emt 0:00:12]} 58. Qh4+ {[%emt 0:00:09] [#]} Kg6 {[%emt 0:01:26]} ({Black should play} 58... Bh6 $1 $17 59. Qb4 Bc1 60. Qh4+ Bh6) 59. Qg4+ $11 {[%emt 0:00:03]} Kf6 {[%emt 0:03:00]} (59... Kh7 $5 60. Qh4+ Bh6 $15) 60. Qf4+ {[%emt 0:00:03] Quite a comeback for White.  Weighted Error Value: White=0.32/Black=0.27 (precise)} 1/2-1/2

[Event "Marmaris Karya-18 GM-May 2022"]
[Site "Icmeler-Marmaris"]
[Date "2022.05.09"]
[Round "3.4"]
[White "Ozdemir, Serhan Berat"]
[Black "Toufighi, Homayoon"]
[Result "0-1"]
[ECO "C04"]
[WhiteElo "2117"]
[BlackElo "2439"]
[Annotator "TA"]
[PlyCount "80"]
[EventDate "2022.05.11"]
[EventCountry "TUR"]
[SourceTitle "playchess.com"]
[Source "ChessBase"]
[SourceQuality "1"]
[TimeControl "5400+30"]

{[%evp 13,80,30,25,-6,0,-24,-14,-24,-21,-63,-70,-65,-58,-58,-68,-59,-70,-72,-57,-177,-133,-129,-112,-179,-173,-168,-173,-177,-121,-120,-125,-139,-145,-141,-126,-148,-91,-141,-128,-127,-125,-127,-121,-119,-118,-321,-313,-342,-328,-320,-331,-316,-321,-418,-410,-515,-488,-652,-420,-453,-266,-252,-237,-29971,-12808,-29978,-29979,-29978,-5802]} 1. e4 {[%emt 0:08:00]} e6 {[%emt 0:07:00]} 2. d4 {[%emt 0:00:00]} d5 {[%emt 0:00:00]} 3. Nd2 {[%emt 0:00:00]} Nc6 {[%emt 0:02:00]} 4. Ngf3 {[%emt 0:01:30]} Nf6 {[%emt 0:00:30]} 5. e5 {[%emt 0:00:30]} Nd7 {[%emt 0:00:30]} 6. Bb5 {[%emt 0:00:30]} a6 {[%emt 0:00:30]} 7. Bxc6 {[%emt 0:01:30]} bxc6 {[%emt 0:02:30]} 8. O-O {[%emt 0:00:30] C04: French Tarrasch: 3...Nc6.} c5 {[%emt 0:00:30]} 9. c4 {[%emt 0:00:30]} Bb7 {[%emt 0:00:30]} 10. Re1 {[%emt 0:02:30] The position is equal.} Be7 {[%emt 0:00:30] [#]} 11. Nb3 $146 {[%emt 0:04:30]} ({Predecessor:} 11. dxc5 Nxc5 12. b3 d4 13. Ba3 Nd3 14. Bxe7 Qxe7 15. Rf1 c5 16. Qb1 Nf4 17. Ne4 {0-1 (30) Garcia Blanco,O (2324)-Quintiliano Pinto,R (2469) Chess.com INT 2021}) 11... dxc4 {[%emt 0:01:30]} 12. Na5 {[%emt 0:02:30][%csl LRb7,LRc4]} Bd5 {[%emt 0:00:00]} 13. Qe2 {[%emt 0:09:30]} Nb6 {[%emt 0:02:00]} 14. Be3 {[%emt 0:00:30]} cxd4 {[%emt 0:00:30]} 15. Nxd4 {[%emt 0:00:30]} Qd7 {[%emt 0:00:30] Prevents Ndc6.} 16. Nc2 {[%emt 0:07:30]} (16. Rad1 $1 $15) 16... Qb5 {[%emt 0:05:30]} 17. b4 {[%emt 0:02:30]} cxb3 {[%emt 0:03:30]} 18. Nxb3 {[%emt 0:02:30]} (18. axb3 $17 Nd7 19. f4) 18... Qxe2 $19 {[%emt 0:00:00]} 19. Rxe2 {[%emt 0:00:30]} Na4 {[%emt 0:01:00]} 20. Bd2 {[%emt 0:02:30]} Rb8 {[%emt 0:00:00]} ({Black should play} 20... c5 $19 21. Ne3 c4 22. Nxd5 exd5) 21. Ne3 $17 {[%emt 0:00:30]} c6 {[%emt 0:01:00] Black is more active.} 22. Ba5 {[%emt 0:00:30]} Kd7 {[%emt 0:01:30]} 23. Rc2 {[%emt 0:00:30]} Rhc8 {[%emt 0:00:30]} 24. Rac1 {[%emt 0:00:30]} Bg5 {[%emt 0:04:30] A strong pair of Bishops.} (24... Bxb3 $142 25. axb3 Rxb3) 25. Rd2 {[%emt 0:00:30]} ({Better is} 25. Rd1) 25... c5 {[%emt 0:02:30][%cal Oc5c4] Hoping for ...c4!} 26. Rc4 {[%emt 0:00:30] [#]} Nb2 $1 {[%emt 0:05:30][%mdl 512]} 27. Rxc5 {[%emt 0:04:30]} Bxe3 {[%emt 0:00:30] Chess con chili.} 28. fxe3 {[%emt 0:00:30]} Nc4 $36 {[%emt 0:00:30][%mdl 2048] And now ...Rxc5 would win. Black has strong initiative.} 29. Rf2 $2 {[%emt 0:01:30] [#] This move loses the game for White.} (29. Rd1 $17 {might work better.} Nxe3 30. Rd3 Rxc5 31. Nxc5+ Kc6 32. Rxe3 Kxc5 33. Re2) 29... Rxc5 $1 $19 {[%emt 0:02:30]} ({Worse is} 29... Nxe5 30. Bc3 Bxb3 31. Rxc8 Rxc8 32. Bxe5 Rc1+ 33. Rf1 Rxf1+ 34. Kxf1 Bc4+ 35. Kf2 $17) 30. Nxc5+ {[%emt 0:00:30]} Kc6 {[%emt 0:06:30]} 31. Nb3 {[%emt 0:00:00] [#]} Rxb3 $1 {[%emt 0:02:30][%mdl 512]} 32. axb3 {[%emt 0:04:00]} Nxa5 {[%emt 0:00:30]} 33. Rxf7 {[%emt 0:02:30]} Nxb3 {[%emt 0:00:30]} 34. Rxg7 {[%emt 0:00:30]} a5 {[%emt 0:00:30][%cal Ba6a5,Ba5a4,Ba4a3,Ba3a2][%mdl 32]} 35. Rxh7 {[%emt 0:00:30]} a4 {[%emt 0:00:30]} 36. h4 {[%emt 0:22:34]} Kb5 {[%emt 0:00:30]} (36... Na5 $142 {Strongly threatening ...a3.} 37. Rf7 Bc4) 37. Rf7 {[%emt 0:04:06]} a3 {[%emt 0:00:30] Threatens to win with ...a2.} 38. Kh2 $2 {[%emt 0:01:59]} (38. Rf2 $19) 38... a2 {[%emt 0:00:00]} 39. Rf1 {[%emt 0:00:02]} Be4 {[%emt 0:00:00]} 40. Rf4 {[%emt 0:00:24]} Bb1 {[%emt 0:00:30] Weighted Error Value: White=0.69/Black=0.15 (very precise)} (40... Bd3 $142 41. Rf6 a1=Q 42. Rxe6 Qe1 43. Re8 Qxh4+ 44. Kg1 Qg3 45. Rb8+ Ka4 46. Ra8+ Na5 47. Rb8 Nc6 48. Rf8 Nxe5 49. Ra8+ Kb3 50. Rb8+ Kc3 51. Rc8+ Kd2 52. Rf8 Ng4 53. Rf2+ Qxf2+ 54. Kh1 Qf1#) 0-1

[Event "Marmaris Karya-18 GM-May 2022"]
[Site "Icmeler-Marmaris"]
[Date "2022.05.09"]
[Round "3.5"]
[White "Inci, Okan"]
[Black "Sevdimaliyev, Urfan"]
[Result "1-0"]
[ECO "A41"]
[WhiteElo "1688"]
[BlackElo "2331"]
[Annotator "TA"]
[PlyCount "75"]
[EventDate "2022.05.11"]
[EventCountry "TUR"]
[SourceTitle "playchess.com"]
[Source "ChessBase"]
[SourceQuality "1"]
[TimeControl "5400+30"]

{[%evp 9,75,58,72,44,70,7,18,-15,12,0,0,0,0,0,0,0,0,0,-2,-15,-10,-9,0,-13,11,0,1,0,87,0,0,0,24,-10,18,9,58,58,56,36,152,54,62,38,60,53,150,149,266,253,1373,1356,1312,1305,1913,1897,1897,1890,1262,514,889,848,1220,1218,1517,1455,29985,29987]} 1. d4 {[%emt 0:05:00]} d6 {[%emt 0:14:00]} 2. Nf3 {[%emt 0:00:30]} Bg4 {[%emt 0:00:30]} 3. c4 {[%emt 0:00:30]} Bxf3 {[%emt 0:00:30]} 4. exf3 {[%emt 0:00:30]} c6 {[%emt 0:00:30]} 5. Nc3 {[%emt 0:00:30]} Nd7 {[%emt 0:00:30]} 6. f4 {[%emt 0:00:30] White is more active. A41: 1 d4 d6: Tartakower System and Modern Defence.} e6 {[%emt 0:00:30] [#]} 7. Qc2 $146 {[%emt 0:01:30]} ({White should play} 7. g3 $14) ({Predecessor:} 7. Be2 Ne7 8. O-O d5 9. b3 g6 10. Bf3 Bg7 11. Bb2 O-O 12. g3 dxc4 13. bxc4 {0-1 (52) Pesout,J (2235)-Kulhanek,T (2385) Prague 2012}) 7... Ne7 {[%emt 0:03:30]} 8. Bd3 {[%emt 0:01:30] The position is equal.} d5 {[%emt 0:03:30]} 9. b3 {[%emt 0:08:30]} g6 {[%emt 0:02:30]} 10. Bb2 {[%emt 0:03:30]} Bg7 {[%emt 0:02:30]} 11. Ne2 $40 {[%emt 0:07:30][%mdl 128] Black needs to defend precisely.} a5 {[%emt 0:03:30]} 12. Rd1 {[%emt 0:00:30]} O-O {[%emt 0:01:30]} 13. O-O {[%emt 0:02:30]} Nf6 {[%emt 0:02:30]} 14. a4 {[%emt 0:07:30]} Nf5 {[%emt 0:01:30]} 15. g3 {[%emt 0:01:30]} h5 {[%emt 0:02:30]} 16. c5 {[%emt 0:05:30]} h4 {[%emt 0:06:30]} 17. Qd2 {[%emt 0:09:30]} hxg3 {[%emt 0:08:30]} 18. hxg3 {[%emt 0:00:30]} Ng4 {[%emt 0:00:30]} (18... b6 $1 $11 {keeps the balance.}) 19. Bxf5 {[%emt 0:04:30]} (19. Kg2 $16) 19... exf5 $11 {[%emt 0:04:30]} 20. Nc1 {[%emt 0:00:00]} Nf6 {[%emt 0:04:30]} 21. f3 {[%emt 0:01:00]} Nh5 {[%emt 0:02:30]} 22. Kg2 {[%emt 0:01:30]} Bh6 {[%emt 0:02:30]} (22... Re8 $11) 23. Nd3 $14 {[%emt 0:00:30]} Qc7 {[%emt 0:03:30]} 24. Rde1 {[%emt 0:08:30]} f6 {[%emt 0:04:30] [#]} (24... Rae8 $14) 25. Re6 {[%emt 0:04:30]} ({White should try} 25. Bc1 $1 $16) 25... Rae8 {[%emt 0:07:09]} 26. Rfe1 {[%emt 0:01:30]} Rxe6 {[%emt 0:02:07]} 27. Rxe6 {[%emt 0:00:00]} g5 {[%emt 0:00:46]} (27... Ra8 $14) 28. Qe1 $16 {[%emt 0:05:08]} gxf4 {[%emt 0:03:25]} (28... Qh7 $16) 29. Re7 $18 {[%emt 0:00:22][%mdl 64] Skewer} Qd8 $2 {[%emt 0:00:42]} (29... Qc8 30. Bc1 Ng7) 30. Qe6+ {[%emt 0:05:19]} Kh8 {[%emt 0:00:01] [#]} 31. Ne5 $1 {[%emt 0:05:51][%cal Re5g6][%mdl 576] Pin} Ng7 {[%emt 0:06:43]} (31... Qxe7 32. Ng6+) 32. Ng6+ {[%emt 0:01:12]} Kh7 {[%emt 0:00:01]} 33. Nxf8+ {[%emt 0:00:25]} Qxf8 {[%emt 0:00:06]} 34. Qxf5+ {[%emt 0:00:21]} (34. Rf7 $142 {Qxf5+ would kill now.} Qd8 35. Qxf5+ Kg8 36. Qg6) 34... Kh8 {[%emt 0:00:52]} (34... Kg8 $142 35. Qd7 fxg3) 35. Qd7 {[%emt 0:01:13]} fxg3 {[%emt 0:00:16]} 36. Rf7 {[%emt 0:01:14]} Qa8 {[%emt 0:01:52]} 37. Rxf6 {[%emt 0:01:02]} Kh7 {[%emt 0:00:15]} 38. Qh3 {[%emt 0:00:59] Weighted Error Value: White=0.34/Black=0.62} 1-0